bitfinex/quotes_ETHUSD_20240713
["timestamp","ask_amount","ask_price","bid_price","bid_amount"]
[1720888946393,2.74396285,3164.8,3164.3,0.55]
[1720888946600,3.77196285,3164.9,3164.3,0.55]
[1720888946877,2.74396285,3164.8,3164.3,0.875116]
[1720888947089,1.028,3164.7,3164.3,0.875116]
[1720888947645,4.028,3164.7,3164.3,0.875116]
[1720888949085,5.7449047,3164.7,3164.3,0.875116]
[1720888949856,4.028,3164.7,3164.3,0.875116]
[1720888950060,4.028,3164.7,3164.4,0.3280716]
[1720888952145,1.028,3164.7,3164.4,0.3280716]
[1720888952345,3.77366395,3164.9,3164.4,0.3280716]
[1720888952583,2.74566395,3164.9,3164.5,2.3318]
[1720888952785,2.74566395,3165.0,3164.6,0.81598716]
[1720888953173,1.028,3164.9,3164.6,0.81598716]
[1720888954100,1.028,3164.9,3164.6,0.55]
[1720888960792,3.0,3165.1,3164.6,0.55]
[1720888960793,4.028,3165.1,3164.6,0.55]
[1720888962387,1.028,3164.7,3164.6,0.55]
[1720888962593,1.028,3164.7,3164.2,9.06669234]
[1720888962918,1.028,3164.5,3164.3,0.55]
[1720888964512,1.028,3164.5,3164.2,9.06669234]
[1720888964881,1.028,3164.3,3164.2,6.73489234]
[1720888968172,1.028,3164.3,3163.9,2.3318]
[1720888969115,1.028,3164.1,3163.6,2.3318]
[1720888969314,1.028,3164.1,3163.6,2.8818]
[1720888969630,1.028,3163.9,3163.6,0.55]
[1720888974356,1.028,3163.9,3163.4,0.55]
[1720888975230,1.028,3163.9,3163.4,0.83818]
[1720888977255,1.028,3163.9,3163.4,0.55]
[1720888980474,1.028,3163.9,3163.1,6.73489234]
[1720888980475,1.028,3163.7,3163.1,6.73489234]
[1720888980657,1.028,3163.7,3163.2,0.55]
[1720888981044,1.028,3163.7,3163.1,6.73489234]
[1720888981245,1.028,3163.7,3163.1,8.86993157]
[1720888984251,1.028,3163.5,3163.1,6.73489234]
[1720888984951,1.028,3163.3,3163.1,6.73489234]
[1720888985195,1.028,3163.3,3162.7,6.73489234]
[1720888985499,1.028,3162.8,3162.7,6.73489234]
[1720888988411,1.028,3163.1,3162.7,7.40838157]
[1720888988573,1.028,3163.1,3162.7,6.73489234]
[1720888988974,1.028,3163.1,3162.6,2.3355]
[1720888991875,1.028,3162.9,3162.2,2.4223]
[1720888992188,1.028,3162.9,3162.3,0.55]
[1720888992395,1.028,3162.7,3162.4,0.29723]
[1720888992578,1.028,3162.7,3162.3,0.55]
[1720888994209,1.028,3162.7,3162.2,0.55]
[1720888997439,1.028,3162.9,3162.2,0.55]
[1720888997622,1.028,3162.9,3162.3,2.4223]
[1720888997801,1.028,3162.9,3162.4,0.29723]
[1720888998905,1.028,3162.7,3162.4,0.29723]
[1720888999122,1.028,3162.7,3162.2,0.55]
[1720889000738,1.028,3162.7,3162.1,6.73489234]
[1720889004012,1.028,3162.5,3161.9,2.4223]
[1720889004214,1.028,3162.5,3162.0,0.55]
[1720889004398,1.028,3162.5,3162.1,0.29723]
[1720889005213,1.028,3162.7,3162.1,0.29723]
[1720889006403,3.0,3163.0,3162.2,3.4503]
[1720889006609,1.028,3163.3,3162.2,4.0003]
[1720889006954,1.028,3163.1,3162.3,0.429753]
[1720889007243,1.028,3162.9,3162.4,0.55]
[1720889008835,3.0,3163.3,3162.5,2.4223]
[1720889009045,3.0,3163.3,3162.6,0.55]
[1720889009231,2.2584,3163.8,3162.6,0.55]
[1720889009436,1.028,3163.6,3162.7,0.40003]
[1720889009638,1.028,3163.6,3162.9,2.4223]
[1720889010304,1.028,3163.4,3162.9,2.4223]
[1720889013549,1.028,3163.5,3162.9,2.4223]
[1720889013756,3.0,3163.7,3162.9,2.704533]
[1720889013970,1.028,3163.3,3162.9,2.4223]
[1720889015730,1.028,3163.1,3162.9,2.4223]
[1720889016024,3.0,3163.7,3162.9,2.4223]
[1720889016025,1.028,3163.3,3162.9,2.4223]
[1720889016236,1.028,3163.1,3162.6,2.972]
[1720889017464,1.028,3163.1,3162.6,3.2692]
[1720889019465,1.028,3163.3,3162.6,3.2692]
[1720889019766,5.73849331,3163.7,3162.7,2.422]
[1720889019767,4.028,3163.5,3162.7,2.422]
[1720889019969,3.0,3163.4,3162.8,0.55]
[1720889020201,1.028,3163.5,3162.9,0.2972]
[1720889020507,3.0,3163.7,3162.9,0.2972]
[1720889020668,4.028,3163.7,3163.0,2.422]
[1720889021085,3.0,3163.6,3163.0,2.422]
[1720889021279,1.028,3163.7,3163.0,2.422]
[1720889021960,4.028,3163.7,3163.0,2.422]
[1720889022162,1.028,3163.5,3163.0,2.422]
[1720889024267,1.028,3163.3,3163.0,2.422]
[1720889024467,1.028,3163.3,3162.8,0.55]
[1720889024728,1.028,3163.3,3162.7,9.15689234]
[1720889027665,1.028,3163.3,3162.7,2.422]
[1720889031511,3.0,3163.5,3162.8,0.55]
[1720889031682,3.0,3163.5,3163.0,2.3893]
[1720889034400,3.771518,3163.6,3163.0,2.3893]
[1720889034597,2.743518,3163.6,3163.1,2.45252672]
[1720889034849,3.0,3163.8,3163.2,0.55]
[1720889035144,3.0,3163.8,3163.3,2.3893]
[1720889035308,1.028,3163.8,3163.3,2.68323]
[1720889040706,3.0,3163.9,3163.3,2.68323]
[1720889041257,3.77050259,3164.0,3163.3,2.68323]
[1720889041539,3.0,3163.9,3163.3,2.68323]
[1720889042819,4.028,3164.0,3163.3,2.68323]
[1720889046146,4.028,3164.0,3163.3,2.3893]
[1720889046346,1.028,3163.8,3163.3,2.3893]
[1720889054541,4.028,3163.8,3163.3,2.3893]
[1720889057565,1.028,3163.8,3163.3,2.3893]
[1720889057878,4.028,3163.8,3163.3,2.3893]
[1720889060806,1.028,3163.8,3163.3,2.3893]
[1720889061104,4.028,3163.8,3163.3,2.3893]
[1720889061252,1.028,3163.8,3163.3,2.3893]
[1720889061454,4.028,3163.8,3163.3,2.3893]
[1720889067144,3.0,3163.8,3163.3,2.3893]
[1720889067308,3.0,3163.8,3163.3,2.62823]
[1720889067760,0.33098022,3163.7,3163.3,2.62823]
[1720889068639,0.33098022,3163.7,3163.3,2.3893]
[1720889071179,1.028,3163.6,3163.3,2.3893]
[1720889071349,1.028,3163.4,3163.0,2.8924]
[1720889073888,1.028,3163.4,3163.0,2.3424]
[1720889074388,1.028,3163.1,3162.9,6.73489234]
[1720889075245,1.028,3163.1,3162.7,2.3424]
[1720889078099,1.028,3163.1,3162.4,6.73489234]
[1720889078265,2.74521015,3163.0,3162.5,2.3424]
[1720889078972,2.74521015,3162.9,3162.5,2.3424]
[1720889079358,2.74521015,3163.0,3162.5,2.3424]
[1720889079559,1.028,3162.9,3162.5,2.3424]
[1720889080858,1.028,3162.9,3162.4,6.73489234]
[1720889083096,0.33090845,3162.8,3162.5,2.3424]
[1720889087093,0.33090845,3162.8,3162.6,0.55]
[1720889088101,0.33090845,3162.8,3162.5,2.3424]
[1720889089734,0.33090845,3162.8,3162.1,2.3424]
[1720889089907,0.33090845,3162.8,3162.2,1.45772923]
[1720889090105,0.33090845,3162.8,3162.3,2.3622]
[1720889098480,0.33090845,3162.8,3162.4,0.55]
[1720889107698,0.33090845,3162.8,3162.3,2.3622]
[1720889108003,0.33090845,3162.8,3162.0,6.73489234]
[1720889108004,2.3804,3162.6,3162.0,6.73489234]
[1720889108154,2.3804,3162.6,3162.1,0.67348923]
[1720889109298,2.3804,3162.6,3162.2,0.55]
[1720889110250,2.3804,3162.6,3162.1,0.55]
[1720889111661,1.028,3162.7,3162.1,0.55]
[1720889111862,1.028,3162.7,3162.2,0.72848923]
[1720889112065,2.67120845,3162.8,3162.2,0.72848923]
[1720889112372,3.69920845,3162.8,3162.2,0.72848923]
[1720889112961,1.35890845,3162.8,3162.3,2.2977]
[1720889116175,1.35890845,3162.8,3162.1,2.8477]
[1720889116376,1.028,3162.6,3162.0,6.73489234]
[1720889118479,3.0754061,3162.8,3162.1,2.2977]
[1720889118670,3.0754061,3162.8,3162.1,2.8477]
[1720889118902,0.33090845,3162.8,3162.1,2.8477]
[1720889119942,3.07722471,3162.8,3162.1,2.8477]
[1720889120144,0.33090845,3162.8,3162.1,2.8477]
[1720889120303,0.33090845,3162.8,3162.2,0.95825923]
[1720889120503,3.07722471,3162.8,3162.2,0.95825923]
[1720889121648,1.028,3162.7,3162.1,2.8477]
[1720889121834,3.7738446,3162.7,3162.1,2.8477]
[1720889122004,1.028,3162.7,3162.1,2.8477]
[1720889122210,3.7738446,3162.7,3162.1,2.8477]
[1720889123142,3.77379461,3162.7,3162.1,2.8477]
[1720889123528,3.77370335,3162.7,3162.1,2.8477]
[1720889125847,3.77379725,3162.7,3162.1,2.8477]
[1720889126168,1.028,3162.7,3162.1,2.8477]
[1720889126369,3.77379725,3162.7,3162.1,3.80595923]
[1720889126576,1.028,3162.7,3162.1,3.80595923]
[1720889127159,3.77381258,3162.7,3162.1,3.80595923]
[1720889127357,1.028,3162.7,3162.1,3.80595923]
[1720889128435,3.77381258,3162.7,3162.1,3.80595923]
[1720889129736,3.77347733,3162.7,3162.1,3.80595923]
[1720889130269,3.77347733,3162.7,3162.0,6.73489234]
[1720889130471,3.4744,3162.5,3162.0,6.73489234]
[1720889131145,0.33082531,3162.4,3162.0,6.73489234]
[1720889131736,0.33082531,3162.4,3161.9,2.3786]
[1720889132847,0.33082531,3162.4,3161.9,2.61646]
[1720889136986,1.028,3162.1,3161.6,9.11349234]
[1720889137158,1.028,3162.1,3161.7,0.55]
[1720889142286,1.028,3162.3,3161.7,0.55]
[1720889142585,0.33082531,3162.4,3161.7,0.55]
[1720889142586,0.33082531,3162.4,3161.8,2.3786]
[1720889142741,0.33082531,3162.4,3161.9,0.29286]
[1720889142949,0.33082531,3162.4,3161.8,2.3786]
[1720889143390,1.35882531,3162.4,3161.8,2.3786]
[1720889143550,2.4464,3162.3,3161.7,0.55]
[1720889143856,2.4464,3162.3,3161.6,0.55]
[1720889144474,1.028,3162.2,3161.6,0.55]
[1720889144674,1.028,3162.2,3161.6,0.84286]
[1720889154485,1.028,3162.4,3161.6,0.84286]
[1720889154691,5.2827,3162.5,3161.7,0.06325188]
[1720889154891,5.2827,3162.5,3161.6,0.84286]
[1720889155090,3.0,3162.5,3161.7,2.3082]
[1720889155323,3.0,3162.5,3161.7,2.623306]
[1720889156629,1.028,3162.6,3161.9,2.3082]
[1720889157196,3.76987746,3162.6,3161.9,2.3082]
[1720889157396,3.0,3162.5,3161.9,2.3082]
[1720889159807,3.77035615,3162.6,3161.9,2.3082]
[1720889160007,3.0,3162.5,3161.9,2.3082]
[1720889160404,2.74235615,3162.6,3161.9,2.5705306]
[1720889160627,5.22478321,3164.7,3162.1,2.3082]
[1720889160628,3.77035615,3162.8,3162.1,2.3082]
[1720889161018,3.77035615,3162.8,3162.2,0.55]
[1720889161714,1.028,3162.6,3162.2,0.55]
[1720889162739,1.028,3162.6,3162.1,2.3082]
[1720889164034,1.028,3162.6,3162.1,2.30669225]
[1720889165454,1.028,3162.6,3160.9,2.21455]
[1720889165455,1.028,3162.4,3160.9,2.21455]
[1720889165655,1.028,3162.4,3161.6,0.55]
[1720889166654,1.028,3162.6,3161.6,0.55]
[1720889167053,1.028,3162.6,3161.7,2.3082]
[1720889167259,1.028,3162.6,3161.9,2.3082]
[1720889167553,1.028,3162.6,3162.0,0.55]
[1720889167861,1.028,3162.6,3162.1,2.3082]
[1720889168046,1.028,3162.6,3162.2,0.55]
[1720889170280,2.7427876,3162.9,3162.2,0.55]
[1720889170494,3.0,3162.8,3162.3,0.3490594]
[1720889170782,3.0,3162.8,3162.4,2.4249]
[1720889170985,4.028,3162.9,3162.4,2.4249]
[1720889171185,6.7707876,3162.9,3162.4,2.4249]
[1720889172095,6.92877925,3162.9,3162.4,2.4249]
[1720889172453,3.158,3162.9,3162.5,0.55]
[1720889173790,1.028,3162.8,3162.5,0.55]
[1720889175384,1.72092369,3162.8,3162.2,2.4249]
[1720889175587,4.72092369,3162.8,3162.2,2.4249]
[1720889175769,7.46364923,3162.8,3162.2,2.4249]
[1720889176095,1.028,3162.6,3162.2,2.4249]
[1720889180392,4.46368952,3162.8,3162.2,2.4249]
[1720889180883,1.72092369,3162.8,3162.2,2.4249]
[1720889181084,4.72092369,3162.8,3162.2,2.4249]
[1720889181381,7.46368952,3162.8,3162.2,2.4249]
[1720889181577,4.72092369,3162.8,3162.2,2.4249]
[1720889182023,0.48789237,3162.7,3162.2,2.4249]
[1720889182598,1.028,3162.6,3161.8,6.73489234]
[1720889182837,1.028,3162.6,3161.9,2.9749]
[1720889184146,2.4491,3162.9,3161.9,2.9749]
[1720889184147,3.92847728,3162.9,3161.9,2.9749]
[1720889184306,3.0,3162.8,3161.9,2.9749]
[1720889184509,1.186,3162.9,3162.1,2.4249]
[1720889184730,1.186,3162.9,3162.2,0.55]
[1720889185603,0.158,3162.9,3162.3,2.4249]
[1720889185943,0.158,3162.9,3162.5,2.4249]
[1720889186151,0.158,3162.9,3162.6,0.61323311]
[1720889186315,0.158,3162.9,3162.6,0.55]
[1720889187143,0.158,3162.9,3162.5,2.4249]
[1720889187703,2.4491,3162.9,3161.9,2.4249]
[1720889187940,1.028,3162.8,3162.1,2.4249]
[1720889188137,1.028,3162.8,3162.2,0.55]
[1720889188446,1.028,3162.8,3162.3,2.4249]
[1720889188655,1.028,3162.8,3162.4,0.55]
[1720889190528,0.158,3162.9,3162.4,0.55]
[1720889191938,1.028,3162.8,3162.4,0.55]
[1720889198783,0.158,3162.9,3162.4,0.55]
[1720889203483,0.55125661,3162.9,3162.4,0.55]
[1720889203799,0.158,3162.9,3162.4,0.55]
[1720889204288,0.158,3162.9,3162.4,0.6132354]
[1720889205071,0.158,3162.9,3162.4,0.55]
[1720889206560,0.158,3162.9,3162.4,0.61323531]
[1720889206970,0.158,3162.9,3162.4,0.55]
[1720889210554,0.158,3162.9,3162.5,2.3796]
[1720889210796,0.158,3162.9,3162.6,0.55]
[1720889211795,0.158,3162.9,3162.6,0.61323212]
[1720889211965,0.158,3162.9,3162.6,0.55]
[1720889212393,0.158,3162.9,3162.6,0.61323324]
[1720889212593,0.158,3162.9,3162.6,0.91251656]
[1720889212980,0.158,3162.9,3162.6,0.84928332]
[1720889214372,0.33078282,3162.8,3162.6,0.84928332]
[1720889217365,0.33078282,3162.8,3162.6,0.55]
[1720889228243,0.33078282,3162.8,3162.5,2.3796]
[1720889229760,0.33078282,3162.8,3162.2,2.3796]
[1720889229944,0.33078282,3162.8,3162.3,0.55]
[1720889233465,0.33078282,3162.8,3162.4,2.3464]
[1720889233772,0.33078282,3162.8,3162.4,2.63604]
[1720889244470,0.33078282,3162.8,3162.4,2.3464]
[1720889249404,0.33078282,3162.8,3162.5,0.55]
[1720889252739,0.33078282,3162.8,3162.6,3.4513]
[1720889252946,0.33078282,3162.8,3162.7,2.9733]
[1720889254250,2.75036716,3163.5,3162.7,2.9733]
[1720889254401,0.33078261,3163.3,3163.0,2.4233]
[1720889254603,0.33078261,3163.3,3163.1,0.6132213]
[1720889254807,0.33078261,3163.3,3163.1,0.55]
[1720889255064,2.7492638,3163.8,3163.2,2.4233]
[1720889255362,0.33079062,3163.8,3163.3,1.97813]
[1720889255664,0.33079062,3163.8,3163.5,1.028]
[1720889255940,0.33079062,3163.8,3163.7,1.028]
[1720889256345,0.33079062,3163.8,3163.7,1.578]
[1720889258011,0.33079062,3163.8,3163.7,0.55]
[1720889258202,0.33079062,3163.8,3163.6,0.55]
[1720889258408,0.33079062,3163.8,3163.6,0.61320686]
[1720889258704,0.33079062,3163.8,3163.7,0.16412069]
[1720889258904,0.33079062,3163.8,3163.7,0.71412069]
[1720889262811,0.33079062,3163.8,3163.7,3.13742069]
[1720889263118,0.33079062,3163.8,3163.7,4.16542069]
[1720889264809,3.4611,3164.9,3163.7,4.16542069]
[1720889265036,0.33078111,3164.4,3163.9,3.4513]
[1720889265233,2.4331,3164.9,3164.0,0.55]
[1720889265548,0.33078339,3164.4,3164.0,0.55]
[1720889265911,2.4331,3164.9,3164.0,0.55]
[1720889266113,0.33078333,3164.4,3164.1,1.09119743]
[1720889266336,4.028,3165.1,3164.2,0.16411974]
[1720889266545,0.33078181,3164.5,3164.3,0.61319634]
[1720889266815,4.028,3165.1,3164.3,0.55]
[1720889267052,0.330781,3164.5,3164.2,0.55]
[1720889267418,4.028,3165.1,3164.2,0.55]
[1720889267751,0.33078246,3164.5,3164.2,0.55]
[1720889268044,0.33078246,3165.0,3164.2,0.55]
[1720889268257,0.43587825,3164.9,3164.2,0.55]
[1720889270356,0.43587825,3164.9,3164.0,0.55]
[1720889270555,0.33078246,3165.0,3164.0,0.55]
[1720889270741,1.028,3164.9,3164.0,0.55]
[1720889273443,1.028,3164.7,3164.0,0.55]
[1720889276524,1.028,3164.5,3164.0,0.55]
[1720889276761,1.028,3164.5,3163.9,6.73489234]
[1720889277059,2.3448,3164.4,3163.9,6.73489234]
[1720889277835,1.028,3164.3,3163.9,6.73489234]
[1720889278359,2.3448,3164.4,3163.9,6.73489234]
[1720889278560,2.68208,3164.4,3163.9,6.73489234]
[1720889279479,1.028,3164.6,3164.0,2.4793]
[1720889279772,1.028,3164.6,3164.0,3.0293]
[1720889279967,3.0,3164.7,3164.0,3.0293]
[1720889280268,1.028,3164.6,3164.0,3.0293]
[1720889280425,1.66528,3164.6,3164.0,3.0293]
[1720889281520,1.028,3164.6,3164.0,3.0293]
[1720889282594,3.0,3164.7,3164.0,3.0293]
[1720889282882,1.028,3164.8,3164.0,3.0293]
[1720889283384,0.3307865,3164.7,3164.0,3.0293]
[1720889290088,0.3307865,3164.7,3164.0,3.09249851]
[1720889290397,0.3307865,3164.7,3164.2,2.4069]
[1720889290579,0.3307865,3164.7,3164.3,0.55]
[1720889292803,1.3587865,3164.7,3164.3,0.55]
[1720889295199,1.3587865,3164.7,3163.9,9.14179234]
[1720889295392,1.3587865,3164.7,3164.0,0.55]
[1720889295896,1.3587865,3164.7,3164.0,1.51054925]
[1720889296306,1.3587865,3164.7,3164.1,2.4069]
[1720889296307,0.3307865,3164.7,3164.1,2.4069]
[1720889296597,0.3307865,3164.7,3164.3,2.4069]
[1720889300061,0.3307865,3164.7,3164.4,0.55]
[1720889300271,0.3307865,3164.7,3164.3,2.4069]
[1720889301796,0.3307865,3164.7,3164.0,3.36744925]
[1720889301999,0.3307865,3164.7,3164.1,1.56023416]
[1720889309980,0.3307865,3164.7,3164.1,0.55]
[1720889313393,3.07867631,3164.7,3164.1,0.55]
[1720889314688,0.3307865,3164.7,3164.1,0.55]
[1720889315484,3.07913238,3164.7,3164.1,0.55]
[1720889316085,0.3307865,3164.7,3164.1,0.55]
[1720889316288,0.3307865,3164.7,3164.1,1.51917923]
[1720889318393,0.3307865,3164.7,3164.1,0.55]
[1720889325271,2.4821,3164.6,3164.1,0.55]
[1720889325473,2.4821,3164.6,3164.0,0.55]
[1720889326535,3.07998672,3164.7,3164.1,2.3071]
[1720889326967,0.3307865,3164.7,3164.1,2.3071]
[1720889327286,3.07998672,3164.7,3164.2,0.28571]
[1720889329355,0.3307865,3164.7,3164.2,0.28571]
[1720889329685,3.08011618,3164.7,3164.3,0.55]
[1720889331085,0.3307865,3164.7,3164.3,0.55]
[1720889334804,0.3307865,3164.7,3164.3,0.864281]
[1720889340699,0.3307865,3164.7,3164.3,0.55]
[1720889341112,3.08010388,3164.7,3164.2,0.55]
[1720889342001,3.0803812,3164.7,3164.2,0.55]
[1720889342435,3.08038743,3164.7,3164.2,0.55]
[1720889342611,5.12550093,3164.6,3163.9,9.11269234]
[1720889342829,5.12550093,3164.6,3164.0,0.55]
[1720889344622,1.028,3164.5,3163.9,6.73489234]
[1720889344875,3.77776462,3164.5,3163.9,6.73489234]
[1720889345074,2.74976462,3164.4,3163.9,6.73489234]
[1720889345275,1.028,3164.5,3163.9,7.64616157]
[1720889345276,2.749746,3164.5,3163.9,7.64616157]
[1720889345481,2.749746,3164.6,3164.0,2.3778]
[1720889345675,0.33077096,3164.4,3164.0,2.3778]
[1720889346051,0.33077096,3164.4,3163.9,7.64616157]
[1720889346252,0.33077096,3164.4,3164.0,0.55]
[1720889346457,2.70667096,3164.4,3163.9,6.73489234]
[1720889347073,5.45641696,3164.4,3163.9,6.73489234]
[1720889347650,6.10485866,3164.4,3163.9,6.73489234]
[1720889347859,2.3759,3164.1,3163.9,6.73489234]
[1720889348895,2.3759,3164.1,3163.5,6.73489234]
[1720889349100,2.74876204,3164.3,3163.6,0.55]
[1720889349407,2.3759,3164.3,3163.7,2.3778]
[1720889349605,3.079533,3164.4,3163.7,2.3778]
[1720889349606,3.079533,3164.4,3163.8,0.29278]
[1720889349902,0.33077096,3164.4,3163.9,0.55]
[1720889350264,0.33077096,3164.4,3163.8,0.55]
[1720889350871,2.4573,3164.3,3163.5,0.55]
[1720889351077,2.4573,3164.3,3163.4,0.55]
[1720889351276,2.4573,3164.3,3163.5,0.40504]
[1720889351499,2.4573,3164.3,3163.6,0.55]
[1720889357503,0.33077096,3164.4,3163.7,2.4724]
[1720889358091,0.33077096,3164.4,3163.8,1.028]
[1720889358429,0.33077096,3164.4,3163.9,0.55]
[1720889358598,0.33077096,3164.4,3164.0,2.4724]
[1720889358802,0.33077096,3164.4,3164.1,0.30224]
[1720889359402,0.33077096,3164.4,3164.2,1.578]
[1720889360824,0.33077096,3164.4,3164.2,0.55]
[1720889367333,0.33077096,3164.4,3164.0,2.4724]
[1720889370643,2.78027096,3164.4,3163.7,9.19639234]
[1720889370847,2.78027096,3164.4,3163.8,0.55]
[1720889375348,0.33077096,3164.4,3163.8,0.55]
[1720889377055,2.4495,3164.3,3163.7,6.73489234]
[1720889377472,1.028,3164.2,3163.7,6.73489234]
[1720889377764,2.4495,3164.1,3163.7,6.73489234]
[1720889378464,0.33076675,3164.0,3163.7,6.73489234]
[1720889380826,1.35876675,3164.0,3163.7,6.73489234]
[1720889381528,1.35876675,3164.0,3163.2,6.73489234]
[1720889381722,1.35876675,3164.0,3163.3,0.55]
[1720889382461,0.33076675,3164.0,3163.3,1.52463923]
[1720889382647,0.33076675,3164.0,3163.3,0.55]
[1720889382855,2.4495,3163.9,3163.3,0.55]
[1720889388232,0.33076675,3164.0,3163.3,0.55]
[1720889388233,0.33076675,3164.0,3163.4,2.4615]
[1720889388440,0.33076675,3164.0,3163.5,0.55]
[1720889396090,0.33076675,3164.0,3163.6,2.3209]
[1720889396271,0.33076675,3164.0,3163.7,0.28709]
[1720889396771,0.33076675,3164.0,3163.8,2.3209]
[1720889397007,0.33076675,3164.0,3163.9,0.55]
[1720889399372,0.33076675,3164.0,3163.8,2.8709]
[1720889409046,0.33076675,3164.0,3163.8,0.55]
[1720889409640,0.33076675,3164.0,3163.5,0.55]
[1720889409804,0.33076675,3164.0,3163.6,0.28709]
[1720889410004,0.33076675,3164.0,3163.7,0.55]
[1720889421024,0.33076675,3164.0,3163.6,0.28709]
[1720889421232,0.33076675,3164.0,3163.4,2.3209]
[1720889421425,0.33076675,3164.0,3163.5,0.55]
[1720889427821,2.60816675,3164.0,3163.5,0.55]
[1720889428747,2.60816675,3164.0,3163.2,9.12389234]
[1720889429068,1.028,3163.7,3163.2,6.73489234]
[1720889429271,1.028,3163.5,3163.2,6.73489234]
[1720889431251,3.77516136,3163.5,3163.2,6.73489234]
[1720889432165,1.028,3163.5,3162.6,9.12389234]
[1720889432366,1.028,3163.5,3162.7,0.55]
[1720889432525,1.66633449,3163.5,3162.7,0.55]
[1720889435069,2.2774,3163.6,3162.7,0.55]
[1720889435291,3.0,3163.6,3162.8,1.028]
[1720889435492,3.3307835,3163.7,3162.8,1.028]
[1720889435664,3.3307835,3163.7,3162.8,1.09123088]
[1720889435866,3.3307835,3163.7,3163.0,3.3138]
[1720889435867,0.3307835,3163.7,3163.0,3.3138]
[1720889436068,0.3307835,3163.7,3163.2,1.028]
[1720889436374,0.3307835,3163.7,3163.4,1.028]
[1720889436570,0.3307835,3163.7,3163.5,0.55]
[1720889436967,0.3307835,3163.7,3163.2,0.55]
[1720889441020,0.3307835,3163.7,3163.2,0.93638]
[1720889449549,0.3307835,3163.7,3163.3,2.2858]
[1720889449842,0.3307835,3163.7,3163.4,0.55]
[1720889453258,0.3307835,3163.7,3163.1,1.028]
[1720889453259,0.3307835,3163.7,3163.3,0.55]
[1720889453460,0.3307835,3163.7,3163.2,0.55]
[1720889453823,0.3307835,3163.7,3163.2,0.95328]
[1720889460255,0.3307835,3163.7,3163.2,0.55]
[1720889460423,0.3307835,3163.7,3163.1,0.55]
[1720889460939,0.3307835,3163.7,3162.6,9.18969234]
[1720889460940,1.028,3163.5,3162.6,9.18969234]
[1720889461156,1.028,3163.5,3162.6,6.73489234]
[1720889462552,1.028,3163.5,3162.7,0.55]
[1720889466341,1.39203835,3163.5,3162.7,0.55]
[1720889469191,2.2816,3163.4,3162.7,0.55]
[1720889470261,1.028,3163.3,3162.6,6.73489234]
[1720889470505,1.028,3163.1,3162.6,6.73489234]
[1720889470706,2.4332,3163.2,3162.6,6.73489234]
[1720889470912,3.6845252,3163.2,3162.6,6.73489234]
[1720889473799,3.6845252,3163.2,3162.3,20.04289234]
[1720889473995,3.6845252,3163.2,3162.4,0.55]
[1720889475223,2.76391542,3163.2,3162.4,0.55]
[1720889477141,2.4332,3163.0,3162.4,0.55]
[1720889478374,2.4332,3163.0,3162.3,19.01489234]
[1720889478896,1.028,3162.9,3162.3,19.01489234]
[1720889479169,2.4332,3163.0,3162.3,19.01489234]
[1720889479766,2.4332,3163.0,3162.3,6.73489234]
[1720889483787,2.4332,3163.0,3162.3,7.51118157]
[1720889483988,2.4332,3163.0,3162.4,0.55]
[1720889484283,2.4332,3163.0,3162.3,7.51118157]
[1720889484284,2.4332,3163.0,3162.3,6.73489234]
[1720889484487,1.028,3162.9,3162.3,6.73489234]
[1720889484686,3.4612,3162.8,3162.3,6.73489234]
[1720889484850,3.80732,3162.8,3162.3,6.73489234]
[1720889485642,3.80732,3162.8,3161.9,9.00479234]
[1720889485868,3.4612,3162.8,3162.0,0.55]
[1720889492600,2.4332,3162.8,3162.0,0.55]
[1720889493390,3.4612,3162.8,3162.0,0.55]
[1720889498469,2.4332,3162.8,3162.0,1.578]
[1720889498655,2.4332,3162.8,3162.1,3.12498923]
[1720889498851,2.2618,3163.1,3162.2,0.55]
[1720889501872,2.2618,3163.1,3162.2,1.578]
[1720889502183,0.33071542,3163.2,3162.3,2.2937]
[1720889502369,0.33071542,3163.2,3162.4,0.55]
[1720889502562,0.33071542,3163.2,3162.5,2.2937]
[1720889503007,0.33071542,3163.2,3162.6,0.55]
[1720889507449,1.028,3163.1,3162.6,0.55]
[1720889510900,2.3331,3163.0,3162.6,0.55]
[1720889511107,2.3331,3163.0,3162.3,0.55]
[1720889512319,1.028,3162.9,3162.3,0.55]
[1720889512519,1.028,3162.9,3162.2,6.73489234]
[1720889519633,3.77481984,3163.1,3162.3,2.4829]
[1720889519837,2.74681984,3163.1,3162.3,3.5109]
[1720889520147,3.07753526,3163.2,3162.5,2.4829]
[1720889521138,2.74686931,3163.1,3162.5,2.4829]
[1720889521638,2.74702018,3163.1,3162.5,2.4829]
[1720889523515,3.0777356,3163.2,3162.5,2.4829]
[1720889523718,2.74701222,3163.1,3162.5,2.4829]
[1720889524425,3.77501222,3163.1,3162.5,2.4829]
[1720889527431,1.028,3163.1,3162.5,2.4829]
[1720889527653,3.77441401,3163.1,3162.5,2.4829]
[1720889528221,2.74641401,3163.0,3162.3,2.4829]
[1720889528417,1.028,3162.9,3162.3,2.4829]
[1720889531042,0.41051294,3163.0,3162.3,2.4829]
[1720889531367,6.1071691,3163.1,3162.3,2.4829]
[1720889531659,2.7460691,3163.0,3162.3,2.4829]
[1720889532423,1.028,3162.9,3162.3,2.4829]
[1720889536060,3.77397403,3162.9,3162.3,2.4829]